bitfinex-derivatives/quotes_ETHF0:USTF0_20250103
["timestamp","ask_amount","ask_price","bid_price","bid_amount"]
[1735906782416,0.28812,3473.2,3473.1,6.73760599]
[1735906782820,0.28812,3473.2,3473.1,7.02571599]
[1735906783425,3.68872378,3473.2,3473.1,0.28811]
[1735906784323,2.55542234,3473.2,3473.1,4.57248785]
[1735906785319,2.55542234,3473.2,3473.1,4.28437785]
[1735906785632,0.2881,3473.2,3473.1,4.49268348]
[1735906785825,41.0881,3473.2,3473.1,4.49268348]
[1735906786820,0.28814,3472.7,3472.6,4.49268348]
[1735906787124,3.49594,3472.7,3472.6,4.49268348]
[1735906788128,3.2078,3472.7,3472.5,4.49268348]
[1735906788330,0.28815,3472.6,3472.5,4.49268348]
[1735906789526,2.26648851,3472.6,3472.4,4.49268348]
[1735906789726,0.28816,3472.5,3472.4,4.49268348]
[1735906790622,0.28817,3472.4,3472.3,4.49268348]
[1735906790829,0.28817,3472.4,3472.3,4.78086348]
[1735906791036,0.28817,3472.4,3472.3,4.49268348]
[1735906791230,41.08817,3472.4,3472.3,4.49268348]
[1735906791536,47.21117,3472.4,3472.3,4.49268348]
[1735906791833,0.28818,3472.3,3472.2,2.60668348]
[1735906792036,3.49598,3472.3,3472.2,2.60668348]
[1735906792339,8.49598,3472.3,3472.2,2.60668348]
[1735906793134,49.29598,3472.3,3472.2,2.60668348]
[1735906793435,49.29598,3472.3,3471.3,0.28826]
[1735906793436,44.44037364,3472.3,3471.3,0.28826]
[1735906793637,0.28825,3471.4,3471.3,0.28826]
[1735906794037,0.72056,3471.8,3471.0,6.73760599]
[1735906794242,0.28827,3471.3,3471.2,0.28826]
[1735906795136,0.28825,3471.4,3471.3,0.28825]
[1735906796937,41.08825,3471.4,3471.3,0.28825]
[1735906798037,40.8,3471.4,3470.9,5.47436385]
[1735906798250,40.8,3471.4,3471.1,0.28826]
[1735906798251,0.28827,3471.2,3471.1,0.28826]
[1735906801144,0.28826,3471.3,3471.2,0.28825]
[1735906801450,0.28825,3471.4,3471.3,0.28824]
[1735906802449,40.8,3471.6,3471.2,2.26656385]
[1735906802652,0.28823,3471.8,3471.7,0.28822]
[1735906803150,41.08823,3471.8,3471.7,0.28822]
[1735906803848,0.28823,3471.7,3471.6,0.28823]
[1735906804845,0.28825,3471.5,3471.4,0.28824]
[1735906805045,0.28826,3471.4,3471.3,0.28825]
[1735906806050,41.52056,3471.8,3470.9,5.47436385]
[1735906806245,0.28828,3471.3,3471.2,0.28826]
[1735906806650,0.7206,3471.6,3470.9,5.47436385]
[1735906806850,0.28828,3471.1,3471.0,0.28827]
[1735906808050,0.28828,3471.0,3470.9,5.76265385]
[1735906808448,0.28828,3471.0,3470.9,3.49609]
[1735906809352,0.28828,3471.0,3470.9,3.2078]
[1735906809561,0.72064,3471.4,3470.3,6.73760599]
[1735906809562,3.2078,3471.1,3470.3,6.73760599]
[1735906809853,0.28833,3470.5,3470.4,0.28832]
[1735906810249,41.08833,3470.5,3470.4,0.28832]
[1735906813359,40.8,3470.5,3470.4,0.28832]
[1735906814354,41.08833,3470.5,3470.4,0.28832]
[1735906815253,0.28833,3470.5,3470.4,0.28832]
[1735906815856,0.28835,3470.3,3470.2,0.28834]
[1735906816457,0.28835,3470.2,3470.1,3.49615]
[1735906820163,0.28835,3470.2,3470.1,3.2078]
[1735906820361,0.28838,3469.9,3469.8,0.28837]
[1735906821855,2.26656385,3469.9,3469.7,3.2078]
[1735906822060,3.92878,3469.8,3468.8,0.28846]
[1735906822259,5.47436385,3469.3,3468.8,0.28846]
[1735906822466,0.28846,3469.0,3468.8,0.28846]
[1735906822659,40.8,3469.2,3468.8,0.28846]
[1735906822862,40.8,3469.2,3468.7,7.02607599]
[1735906823166,0.28847,3468.8,3468.7,0.28847]
[1735906823560,0.28847,3468.8,3468.5,3.2078]
[1735906823760,0.28847,3468.8,3468.7,0.28847]
[1735906824159,0.28844,3469.1,3468.6,0.28848]
[1735906824366,0.28847,3468.8,3468.6,0.28848]
[1735906824569,0.28847,3468.7,3468.6,0.28848]
[1735906825561,40.8,3469.2,3468.5,3.2078]
[1735906825762,0.28848,3468.6,3468.5,3.2078]
[1735906826067,0.28848,3468.6,3468.5,3.49629]
[1735906826363,0.28848,3468.6,3468.5,3.2078]
[1735906826669,0.28848,3468.6,3468.5,3.49629]
[1735906827069,0.28848,3468.6,3468.5,3.2078]
[1735906827466,0.28848,3468.6,3468.5,3.49629]
[1735906827776,0.28851,3468.3,3468.2,0.28851]
[1735906831173,0.72118,3468.8,3468.1,3.2078]
[1735906831473,0.28851,3468.4,3468.3,0.2885]
[1735906832269,3.2078,3468.9,3468.6,0.28848]
[1735906832469,3.2078,3468.9,3468.8,2.55503385]
[1735906832767,0.72105,3469.5,3468.8,2.26656385]
[1735906832968,0.28845,3469.1,3469.0,0.28844]
[1735906833570,3.2078,3469.7,3468.9,3.2078]
[1735906833874,3.4962,3469.7,3469.6,0.2884]
[1735906834074,44.2962,3469.7,3469.6,0.2884]
[1735906834570,0.28841,3469.6,3469.5,0.28841]
[1735906837280,0.28842,3469.5,3469.4,0.28841]
[1735906840582,44.0078,3469.7,3469.1,0.28843]
[1735906840583,0.28844,3469.2,3469.1,0.28843]
[1735906841582,2.26656385,3469.3,3468.5,3.2078]
[1735906841779,0.28848,3468.6,3468.5,3.49628]
[1735906842175,41.08848,3468.6,3468.5,3.49628]
[1735906842376,0.28852,3468.1,3468.0,3.49633]
[1735906842983,0.28852,3468.2,3468.1,0.28851]
[1735906844287,0.28851,3468.4,3468.3,0.2885]
[1735906844584,43.35506385,3468.6,3468.5,0.28849]
[1735906844882,1.129,3469.2,3468.1,0.72132]
[1735906844883,0.28848,3468.8,3468.7,0.28847]
[1735906845387,0.28849,3468.6,3468.5,0.28848]
[1735906845883,0.28849,3468.6,3467.6,3.2078]
[1735906845884,0.72124,3468.5,3467.6,3.2078]
[1735906846077,5.47436385,3468.2,3467.6,3.2078]
[1735906846276,0.28856,3467.7,3467.6,3.49636]
[1735906846477,0.28856,3467.7,3467.6,3.2078]
[1735906846784,0.28856,3467.7,3467.6,3.49637]
[1735906847475,0.28856,3467.7,3467.6,3.2078]
[1735906847884,0.28856,3467.7,3467.6,3.49637]
[1735906848188,0.28856,3467.7,3467.6,3.2078]
[1735906848583,2.26656385,3467.8,3467.1,3.2078]
[1735906848781,0.72137,3467.9,3467.1,3.2078]
[1735906848982,40.8,3467.8,3467.1,3.2078]
[1735906849175,0.28858,3467.5,3467.4,0.28858]
[1735906849783,0.28857,3467.6,3467.5,0.28857]
[1735906850388,3.2078,3468.2,3467.5,0.28857]
[1735906850389,0.28854,3467.9,3467.8,0.28854]
[1735906850574,5.47436385,3468.6,3467.5,3.2078]
[1735906850784,0.28851,3468.4,3468.3,0.2885]
[1735906851283,0.2885,3468.5,3468.4,0.28849]
[1735906852584,0.2885,3468.4,3468.3,3.4963]
[1735906853184,0.2885,3468.4,3468.3,3.2078]
[1735906853389,0.2885,3468.4,3468.3,3.49631]
[1735906853581,0.2885,3468.4,3468.3,3.2078]
[1735906853890,0.2885,3468.4,3468.3,3.49631]
[1735906854090,0.2885,3468.4,3468.3,0.28851]
[1735906854290,0.2885,3468.4,3468.3,3.49631]
[1735906854685,40.8,3468.8,3468.3,3.2078]
[1735906855090,40.8,3468.8,3468.7,0.28847]
[1735906855583,3.2078,3469.1,3468.5,2.26656385]
[1735906855784,3.2078,3469.1,3469.0,0.28845]
[1735906856185,3.49624,3469.1,3469.0,0.28845]
[1735906856491,3.2078,3469.1,3469.0,0.28845]
[1735906856793,40.8,3469.2,3469.1,0.28844]
[1735906858192,0.28841,3469.6,3469.5,0.2884]
[1735906858588,41.08841,3469.6,3469.5,0.2884]
[1735906858883,0.28842,3469.5,3469.4,0.28841]
[1735906859782,0.28843,3469.4,3469.3,0.28842]
[1735906859987,0.28843,3469.3,3469.2,0.28842]
[1735906860386,40.8,3469.6,3469.0,3.2078]
[1735906860592,0.28843,3469.4,3469.3,0.28842]
[1735906861190,40.8,3469.6,3469.0,3.2078]
[1735906861385,0.28841,3469.5,3469.4,0.28841]
[1735906862493,43.06656385,3469.6,3469.0,3.2078]
[1735906862697,0.28844,3469.2,3469.1,0.28843]
[1735906863094,0.28843,3469.3,3469.2,0.28842]
[1735906863402,0.28844,3469.1,3469.0,3.49625]
[1735906864094,0.28846,3469.0,3468.9,0.28845]
[1735906864694,0.28847,3468.9,3468.8,0.28846]
[1735906865098,0.28846,3469.0,3468.9,0.28845]
[1735906865396,41.08846,3469.0,3468.9,0.28845]
[1735906868691,5.47436385,3469.6,3468.6,3.2078]
[1735906868897,5.47436385,3469.6,3469.1,0.28843]
[1735906868898,0.28845,3469.2,3469.1,0.28843]
[1735906869105,41.08845,3469.2,3469.1,0.28843]
[1735906869302,0.28845,3469.2,3469.1,0.28843]
[1735906873905,0.28846,3468.9,3468.8,6.73760599]
[1735906874105,0.28846,3468.9,3468.8,7.02607599]
[1735906874300,0.28846,3468.9,3468.8,0.28847]
[1735906875101,0.28846,3469.0,3468.9,0.28844]
[1735906877614,40.8,3469.4,3468.6,10.66660599]
[1735906877813,0.28844,3469.3,3469.2,0.28843]
[1735906879321,40.8,3469.4,3469.0,3.2078]
[1735906879515,41.08842,3469.4,3469.3,0.28843]
[1735906881622,0.28844,3469.3,3469.2,0.28843]
[1735906896927,0.28844,3469.3,3469.2,3.49623]
[1735906897129,2.26252294,3469.9,3469.4,0.72105]
[1735906897331,2.26252294,3469.9,3469.8,3.49618]
[1735906897528,3.39378442,3470.0,3469.9,0.28838]
[1735906899132,40.8,3470.1,3470.0,0.28837]
[1735906899329,40.8,3470.1,3469.9,4.38856456]
[1735906899330,2.26716123,3470.3,3470.2,0.28835]
[1735906899530,2.26716123,3470.3,3470.2,3.49615]
[1735906900529,40.8,3470.6,3470.5,0.28833]
[1735906900832,2.26716123,3470.8,3470.7,0.28831]
[1735906901332,43.06716123,3470.8,3470.7,0.28831]
[1735906902131,40.8,3470.8,3470.7,0.28831]
[1735906902736,4.82199508,3471.2,3471.1,0.28828]
[1735906903136,45.62199508,3471.2,3471.1,0.28828]
[1735906903339,43.06716123,3471.2,3471.1,0.28828]
[1735906903639,40.8,3471.2,3471.1,0.28828]
[1735906908538,41.08827,3471.2,3471.1,0.28828]
[1735906909641,40.8,3471.2,3471.0,3.2078]
[1735906909836,0.28828,3471.1,3471.0,3.49608]
[1735906910237,0.28829,3471.0,3470.9,0.28828]
[1735906910542,43.06656385,3471.2,3470.4,3.2078]
[1735906910939,0.28832,3470.6,3470.5,0.28831]
[1735906911243,0.28832,3470.6,3470.3,6.74046125]
[1735906911244,0.28833,3470.4,3470.3,6.74046125]
[1735906911446,41.08833,3470.4,3470.3,6.74046125]
[1735906911938,0.28834,3470.3,3470.2,0.28834]
[1735906912443,41.08834,3470.4,3470.3,0.28834]
[1735906912640,40.8,3470.4,3470.3,0.28834]
[1735906912842,0.2883,3470.8,3470.7,0.28831]
[1735906913443,41.0883,3470.8,3470.7,0.28831]
[1735906915840,40.8,3470.8,3470.7,0.28831]
[1735906919342,41.0883,3470.8,3470.7,0.28831]
[1735906923048,0.28829,3471.0,3470.9,0.28829]
[1735906923452,3.2078,3471.4,3470.6,0.72078]
[1735906923658,0.28828,3471.2,3471.1,0.28827]
[1735906924157,40.8,3471.3,3470.8,3.92856]
[1735906924456,41.08827,3471.3,3471.2,0.28827]
[1735906924851,0.28828,3471.1,3471.0,0.28827]
[1735906928253,40.8,3471.3,3470.8,3.2078]
[1735906928455,0.2883,3470.9,3470.8,0.28829]
[1735906929055,0.28833,3470.6,3470.5,0.28831]
[1735906929353,0.28833,3470.5,3470.4,3.2078]
[1735906929658,5.47436385,3470.9,3470.2,0.28835]
[1735906929659,0.28835,3470.3,3470.2,0.28835]
[1735906929849,0.28835,3470.3,3470.1,4.47981407]
[1735906929850,0.28835,3470.2,3470.1,4.47981407]
[1735906930350,0.28835,3470.2,3470.1,4.76817407]
[1735906931050,0.28837,3470.1,3470.0,0.28836]
[1735906931252,0.28838,3470.0,3469.9,0.28837]
[1735906931451,0.2884,3469.7,3469.6,0.28839]
[1735906931651,0.28838,3469.9,3469.8,0.28838]
[1735906934655,43.06656385,3470.3,3469.5,3.2078]
[1735906934959,0.28837,3470.0,3469.9,0.28836]
[1735906935163,0.28838,3470.0,3469.9,0.28836]
[1735906935362,40.8,3470.3,3469.5,7.68761407]
[1735906935658,0.28836,3470.2,3470.1,0.28835]
[1735906936749,0.28838,3470.0,3469.9,0.28837]
[1735906937153,43.06656385,3470.3,3469.6,4.47981407]
[1735906937354,0.28839,3469.7,3469.6,4.47981407]
[1735906938460,0.28839,3469.7,3469.2,0.28843]
[1735906938461,2.26656385,3469.7,3469.2,4.47981407]
[1735906938857,0.28843,3469.3,3469.2,4.76824407]
[1735906939963,0.28842,3469.4,3469.3,0.28842]
[1735906940160,40.8,3469.6,3469.1,3.2078]
[1735906940364,0.28842,3469.5,3469.4,0.28841]
[1735906942063,0.28843,3469.4,3469.3,0.28842]
[1735906943165,0.28842,3469.5,3469.4,0.28841]
[1735906944161,0.28841,3469.6,3469.5,0.2884]
[1735906945071,0.28841,3469.6,3469.5,3.4962]
[1735906945463,40.8,3469.8,3469.5,3.2078]
[1735906945762,0.2884,3469.7,3469.6,0.28839]
[1735906951570,40.8,3469.8,3469.5,3.2078]
[1735906951877,40.8,3469.8,3469.7,0.28839]
[1735906952578,41.08838,3469.8,3469.7,0.28839]
[1735906953177,40.8,3469.8,3469.7,0.28839]
[1735906955297,41.08838,3469.8,3469.7,0.28839]
[1735906955586,40.8,3469.8,3469.7,0.28839]
[1735906956683,41.08838,3469.8,3469.7,0.28839]
[1735906957189,0.2884,3469.7,3469.6,0.28839]
[1735906957576,40.8,3469.8,3469.5,7.68761407]
[1735906957577,0.2884,3469.6,3469.5,7.68761407]
[1735906957777,0.2884,3469.6,3469.5,4.47981407]
[1735906959388,0.28841,3469.5,3469.4,0.28842]
[1735906962281,0.28843,3469.4,3469.3,0.28842]
[1735906964685,40.8,3469.8,3469.2,4.47981407]
[1735906964886,0.28841,3469.6,3469.5,0.2884]
[1735906967398,0.28837,3470.1,3470.0,0.28836]
[1735906967895,41.08837,3470.1,3470.0,0.28836]
[1735906968097,41.08837,3470.1,3470.0,3.49616]
[1735906968491,41.08837,3470.1,3470.0,0.28836]
[1735906968693,40.8,3470.1,3469.7,2.26656385]
[1735906968895,0.28838,3470.0,3469.9,0.28837]
[1735906969092,0.28838,3469.9,3469.8,0.28837]
[1735906969988,40.8,3470.1,3469.7,6.74637792]
[1735906970188,0.28838,3470.0,3469.9,0.28837]
[1735906970700,0.28838,3470.0,3469.9,3.49617]
[1735906970997,40.8,3470.1,3469.9,3.2078]
[1735906971293,41.08836,3470.1,3470.0,2.55493385]
[1735906971994,40.8,3470.1,3470.0,2.55493385]
[1735906972394,41.08836,3470.1,3470.0,2.55493385]
[1735906972988,40.8,3470.1,3470.0,7.03474792]
[1735906973394,41.08836,3470.1,3470.0,7.03474792]
[1735906974702,40.8,3470.1,3470.0,7.03474792]
[1735906974902,40.8,3470.1,3470.0,13.68790538]
[1735906974903,41.08836,3470.1,3470.0,13.68790538]
[1735906976496,41.08836,3470.1,3470.0,6.94744413]
[1735906976895,40.8,3470.1,3470.0,6.94744413]
[1735906977307,41.08836,3470.1,3470.0,6.94744413]
[1735906977603,41.08836,3470.1,3470.0,10.15524413]
[1735906979804,41.08836,3470.1,3470.0,6.94744413]
[1735906980007,41.08836,3470.1,3470.0,10.15524413]
[1735906980298,41.08836,3470.1,3470.0,7.60031028]
[1735906980806,41.08836,3470.1,3470.0,14.65056762]
[1735906982504,40.8,3470.1,3470.0,16.91713147]
[1735906982908,41.08836,3470.1,3470.0,16.91713147]
[1735906983102,40.8,3470.1,3470.0,16.91713147]
[1735906983704,41.08836,3470.1,3470.0,10.15524413]
[1735906984104,0.72083,3470.5,3470.0,9.86687413]
[1735906984404,0.28835,3470.3,3470.2,0.28834]
[1735906984599,41.08835,3470.3,3470.2,0.28834]
[1735906985107,41.08835,3470.3,3470.2,4.79535961]
[1735906986606,41.08835,3470.3,3470.2,4.68085028]
[1735906988006,41.08835,3470.3,3470.2,0.28834]
[1735906991010,41.08834,3470.3,3470.2,4.3948931]
[1735906992609,41.08834,3470.3,3470.1,6.76052941]
[1735906992610,0.28835,3470.2,3470.1,4.50885359]
[1735906998020,3.49615,3470.2,3470.1,4.50885359]
[1735906998617,3.49615,3470.2,3470.0,4.50885359]
[1735906998618,3.2078,3470.2,3470.0,4.50885359]
[1735906998921,0.28836,3470.1,3470.0,4.50885359]
[1735906999924,2.26716123,3470.1,3469.7,4.50885359]
[1735907000125,0.28838,3469.8,3469.7,4.50885359]
[1735907001519,0.28838,3469.8,3469.7,4.79724359]
[1735907002527,0.28838,3469.8,3469.7,4.50885359]
[1735907002725,0.28838,3469.8,3469.7,4.79724359]
[1735907003220,2.26716123,3470.1,3469.7,4.50885359]
[1735907003429,0.28838,3469.9,3469.8,0.28838]
[1735907005026,0.28838,3469.9,3469.8,4.80254797]
[1735907006121,0.28838,3469.9,3469.8,4.51416797]
[1735907006425,0.28838,3469.9,3469.8,4.80254797]
[1735907006723,0.28838,3469.9,3469.8,4.69042742]
[1735907007326,0.28838,3469.9,3469.8,4.40204742]
[1735907008020,0.28838,3469.8,3469.7,6.76052941]
[1735907009521,0.72093,3470.0,3469.7,4.40062349]
[1735907009731,0.28838,3469.8,3469.7,4.40062349]
[1735907010826,0.28838,3469.8,3469.7,4.51341217]
[1735907011023,8.49618,3469.8,3469.7,4.51341217]
[1735907011332,49.29618,3469.8,3469.7,4.51341217]
[1735907012531,49.29618,3469.8,3469.2,4.51341217]
[1735907012532,0.28843,3469.3,3469.2,4.51341217]
[1735907014025,5.76279385,3469.3,3469.2,4.51341217]
[1735907014230,0.28845,3469.0,3468.9,4.51341217]
[1735907015534,7.74062168,3469.3,3468.7,4.51341217]
[1735907015829,0.28847,3468.8,3468.7,4.51341217]
[1735907016433,41.08847,3468.8,3468.7,4.51341217]
[1735907017041,0.28847,3468.7,3468.6,0.28848]
[1735907017933,0.28848,3468.6,3468.5,8.00970217]
[1735907018529,0.28848,3468.6,3468.5,3.49629]
[1735907019335,0.28848,3468.6,3468.5,3.2078]
[1735907019533,0.28848,3468.6,3468.5,3.49629]
[1735907019733,40.8,3468.8,3468.5,3.49629]
[1735907020334,40.8,3468.8,3468.5,3.2078]
[1735907020722,40.8,3468.8,3468.5,3.49629]
[1735907021633,40.8,3468.8,3468.5,3.2078]
[1735907022037,40.8,3468.8,3468.5,3.49629]
[1735907022238,2.26656385,3468.7,3468.5,3.2078]
[1735907022435,2.26656385,3468.7,3468.3,4.51341217]
[1735907022635,2.55504385,3468.7,3468.3,4.51341217]
[1735907023037,2.26656385,3468.7,3468.3,4.51341217]
[1735907023441,44.0078,3468.8,3468.4,0.2885]
[1735907023843,44.29627,3468.8,3468.4,0.2885]
[1735907024541,44.29627,3468.8,3468.3,4.51341217]
[1735907024740,44.29627,3468.8,3468.4,0.2885]
[1735907024741,0.28848,3468.7,3468.4,0.2885]
[1735907025742,0.28849,3468.6,3468.4,0.2885]
[1735907026346,0.28849,3468.6,3468.3,0.2885]
[1735907026551,0.2885,3468.5,3468.3,0.28851]
[1735907027746,44.0078,3468.8,3468.3,0.28851]
[1735907027948,0.2885,3468.4,3468.3,0.28851]
[1735907029653,0.99866832,3468.6,3468.2,0.99866832]
[1735907029950,0.28851,3468.3,3468.2,1.28717832]
[1735907031249,0.28851,3468.3,3468.2,0.28851]
[1735907032152,0.28852,3468.2,3468.1,3.2078]
[1735907032356,1.28718832,3468.2,3468.1,3.2078]
[1735907033450,1.28718832,3468.2,3468.1,3.49632]
[1735907033645,1.28718832,3468.2,3468.1,3.2078]
[1735907034250,0.28852,3468.2,3468.1,3.2078]
[1735907034646,0.28852,3468.2,3468.1,3.49632]
[1735907034847,44.72899,3468.8,3468.1,3.2078]
[1735907035154,0.28849,3468.7,3468.6,0.28848]
[1735907037353,3.2078,3469.3,3468.5,3.2078]
[1735907037554,0.28845,3469.1,3469.0,0.28844]
[1735907038446,3.2078,3469.3,3468.7,2.27241313]
[1735907038652,0.28846,3468.9,3468.8,0.28846]
[1735907039656,0.28846,3469.0,3468.9,0.28845]
[1735907039853,3.49623,3469.3,3469.2,0.28843]
[1735907040058,3.2078,3469.3,3469.2,0.28843]
[1735907040356,40.8,3469.4,3469.3,0.28843]
[1735907040559,40.8,3469.4,3469.3,2.56084313]
[1735907041763,40.8,3469.4,3469.3,0.28843]
[1735907042458,41.08842,3469.4,3469.3,0.28843]
[1735907042658,40.8,3469.4,3469.3,0.28843]
[1735907043061,41.08842,3469.4,3469.3,0.28843]
[1735907045161,0.28843,3469.3,3469.2,3.49623]
[1735907045963,41.08842,3469.4,3469.3,0.28843]
[1735907047364,40.8,3469.4,3469.3,0.28843]
[1735907048859,40.8,3469.4,3469.3,3.49623]
[1735907050163,40.8,3469.4,3469.3,8.00964217]
[1735907051658,41.08842,3469.4,3469.3,8.00964217]
[1735907051855,41.08842,3469.4,3469.3,7.72121217]
[1735907052061,41.08842,3469.4,3469.3,3.2078]
[1735907052366,0.28843,3469.3,3469.2,4.51341217]
[1735907052562,0.28843,3469.3,3469.2,4.80184217]
[1735907053368,0.28843,3469.3,3469.2,0.28843]
[1735907053678,0.28844,3469.2,3469.1,0.28843]
[1735907054665,40.8,3469.4,3469.0,2.56085313]
[1735907054666,0.28844,3469.1,3469.0,2.56085313]
[1735907054867,0.28844,3469.1,3469.0,0.28844]
[1735907055172,0.28844,3469.1,3469.0,4.80185217]
[1735907055556,0.28844,3469.1,3469.0,4.51341217]
[1735907056366,3.2078,3469.3,3468.8,4.51341217]
[1735907056565,0.28846,3468.9,3468.8,4.51341217]
[1735907058070,0.28847,3468.8,3468.6,4.51341217]
[1735907058568,0.28847,3468.8,3468.7,0.28847]
[1735907059359,0.72113,3469.0,3468.6,4.51341217]
[1735907059666,0.28847,3468.7,3468.6,4.80189217]
[1735907062470,0.28848,3468.6,3468.5,8.00969217]
[1735907062873,0.28848,3468.6,3468.5,7.72121217]
[1735907063662,41.08848,3468.6,3468.5,7.72121217]
[1735907064072,41.08848,3468.6,3468.5,3.2078]
[1735907064266,41.08848,3468.6,3468.5,3.49629]
[1735907065075,41.08848,3468.6,3468.5,3.2078]
[1735907065465,41.08848,3468.6,3468.4,0.2885]
[1735907065669,0.28849,3468.5,3468.4,0.2885]
[1735907066471,41.08849,3468.6,3468.5,0.28849]
[1735907066775,41.08849,3468.6,3468.1,10.68963941]
[1735907066776,40.8,3468.6,3468.1,7.72121217]
[1735907066969,41.08849,3468.6,3468.5,0.28849]
[1735907067368,40.8,3468.6,3468.5,0.28849]
[1735907068374,41.08848,3468.6,3468.5,0.28849]
[1735907068568,40.8,3468.6,3468.5,3.49629]
[1735907068769,41.08848,3468.6,3468.5,3.49629]
[1735907068969,40.8,3468.6,3468.5,3.49629]
[1735907069171,41.08848,3468.6,3468.5,3.49629]
[1735907069674,41.08848,3468.6,3468.5,8.00970217]
[1735907070078,41.08848,3468.6,3468.5,4.80190217]
[1735907071076,0.28848,3468.6,3468.5,0.28849]
[1735907072181,0.28848,3468.7,3468.6,0.28847]
[1735907074085,0.28848,3468.6,3468.5,4.80190217]
[1735907082084,0.28848,3468.6,3468.5,4.68966183]
[1735907082281,0.28848,3468.6,3468.5,5.68814331]
[1735907086983,0.28848,3468.6,3468.5,4.68966183]
[1735907087584,1.28696148,3468.6,3468.5,4.40117183]
[1735907088081,0.28848,3468.6,3468.5,4.40117183]
[1735907088284,0.28848,3468.6,3468.4,7.04901941]
[1735907088285,0.99848148,3468.8,3468.4,4.80347047]
[1735907088485,0.28849,3468.5,3468.4,4.80347047]
[1735907089495,0.28849,3468.5,3468.4,5.80195195]
[1735907089889,0.28849,3468.5,3468.4,4.80347047]
[1735907090886,0.28849,3468.5,3468.4,11.4505173]
[1735907091092,0.28849,3468.5,3468.4,12.44899878]
[1735907091693,0.99848148,3468.8,3468.4,12.16050878]
[1735907091884,0.28849,3468.7,3468.6,0.28847]
[1735907093684,0.28849,3468.7,3468.6,4.68996789]
[1735907096298,0.28847,3468.8,3468.7,0.28847]
[1735907097596,0.28847,3468.8,3468.6,4.68997789]
[1735907097597,0.28847,3468.7,3468.6,4.68997789]
[1735907098390,0.28847,3468.7,3468.6,4.40149789]
[1735907099900,2.55472783,3468.7,3468.6,4.52043276]
[1735907101591,0.28848,3468.6,3468.5,6.78064914]
[1735907102797,1.28696148,3468.6,3468.5,6.78064914]
[1735907103597,3.55777128,3468.6,3468.5,4.41049258]
[1735907105193,3.55777128,3468.6,3468.4,4.52291095]
[1735907105194,0.28849,3468.5,3468.4,4.52291095]
[1735907106902,0.28849,3468.5,3468.4,4.40998808]
[1735907108606,2.55848626,3468.5,3468.4,4.40998808]
[1735907109810,0.28849,3468.5,3468.4,11.19435451]
[1735907112609,7.61177157,3468.6,3468.4,4.52172104]
[1735907112810,0.28849,3468.5,3468.4,4.52172104]
[1735907114016,7.61177157,3468.6,3468.3,4.52172104]
[1735907114219,1.28698148,3468.4,3468.3,4.52172104]
[1735907115309,0.99848148,3468.4,3468.3,4.40802731]
[1735907115517,1.28698148,3468.4,3468.3,4.40802731]
[1735907116714,1.28698148,3468.4,3468.2,6.78436643]
[1735907116715,0.99848148,3468.4,3468.2,6.78436643]
[1735907116917,0.28851,3468.3,3468.2,6.78436643]
[1735907118223,2.5613731,3468.3,3468.2,4.40844614]
[1735907118521,43.3613731,3468.3,3468.2,4.40844614]
[1735907119924,43.0728631,3468.3,3468.0,4.52105364]
[1735907120221,0.28852,3468.1,3468.0,4.52105364]
[1735907122928,3.2078,3468.2,3467.9,4.52105364]
[1735907122929,0.28853,3468.0,3467.9,4.52105364]
[1735907123124,2.5613931,3468.0,3467.9,4.52105364]
[1735907124023,2.2728631,3468.0,3467.6,4.52105364]
[1735907124220,0.28856,3467.7,3467.6,4.52105364]
[1735907124621,2.5614231,3467.7,3467.6,4.52105364]
[1735907126025,2.2728631,3467.7,3467.4,7.72885364]
[1735907126327,0.28857,3467.5,3467.4,7.72885364]
[1735907129026,0.28857,3467.5,3467.4,3.2078]
[1735907130124,2.2728631,3467.7,3467.3,4.52105364]
[1735907130318,0.28858,3467.4,3467.3,4.52105364]
[1735907131825,0.28859,3467.3,3467.2,4.52105364]
[1735907132131,41.08859,3467.3,3467.2,4.52105364]
[1735907133532,0.2886,3467.2,3467.1,4.52105364]
[1735907134637,41.0886,3467.2,3467.1,4.52105364]
[1735907134929,40.8,3467.2,3467.0,7.72885364]
[1735907135126,0.28861,3467.1,3467.0,7.72885364]
[1735907136229,0.28861,3467.1,3467.0,3.2078]
[1735907137434,0.28861,3467.1,3467.0,7.72885364]
[1735907138820,0.28861,3467.1,3467.0,3.2078]
[1735907140633,40.8,3467.2,3466.9,4.80967364]
[1735907140829,0.28862,3467.0,3466.9,4.80967364]
[1735907141129,0.2886,3467.2,3467.1,0.28861]
[1735907141334,0.28859,3467.5,3467.4,0.28857]
[1735907141830,41.08859,3467.5,3467.4,0.28857]
[1735907142228,40.8,3467.5,3467.2,3.2078]
[1735907142427,0.28862,3467.0,3466.9,11.4875792]
[1735907142630,0.28862,3467.0,3466.9,11.1989592]
[1735907144837,0.28862,3467.0,3466.9,4.51282448]
[1735907146034,41.08862,3467.0,3466.9,4.51282448]
[1735907146627,40.8,3467.0,3466.8,3.2078]
[1735907146834,0.28862,3466.9,3466.8,3.2078]
[1735907147429,41.08862,3466.9,3466.8,3.2078]
[1735907147630,0.28864,3466.7,3466.6,4.51282448]
[1735907147835,2.5615031,3466.7,3466.6,4.51282448]
[1735907148239,2.5615031,3466.7,3466.5,4.51282448]
[1735907148240,2.2728631,3466.7,3466.5,4.51282448]
[1735907148540,0.28865,3466.6,3466.5,4.51282448]
[1735907149543,0.28866,3466.5,3466.4,7.72062448]
[1735907151040,0.28866,3466.5,3466.4,3.2078]
[1735907151338,2.2728631,3466.7,3466.3,4.51282448]
[1735907151537,0.28867,3466.4,3466.3,4.51282448]
[1735907152338,2.9944831,3466.7,3466.2,4.51282448]
[1735907152534,0.28867,3466.3,3466.2,4.51282448]
[1735907155137,0.72165,3466.6,3466.1,4.51282448]